bitfinex/quotes_SOLUSD_20250607
["timestamp","ask_amount","ask_price","bid_price","bid_amount"]
[1749331329622,58.12190238,151.15,151.13,10.26]
[1749331331546,26.0,151.15,151.13,10.26]
[1749331331775,24.85429309,151.19,151.13,10.26]
[1749331332047,32.8563091,151.18,151.13,10.26]
[1749331332450,32.8563091,151.18,151.13,17.1163091]
[1749331332648,39.47099684,151.18,151.13,23.73310494]
[1749331336062,26.0,151.18,151.14,6.8563091]
[1749331337243,26.0,151.18,151.13,23.73310494]
[1749331337861,32.8563091,151.18,151.13,23.73310494]
[1749331338768,32.8563091,151.18,151.14,13.47238429]
[1749331339960,13.47021089,151.2,151.15,6.8563091]
[1749331341569,13.47021089,151.2,151.15,13.4721252]
[1749331349858,13.47021089,151.2,151.15,6.6158161]
[1749331351863,6.8563091,151.19,151.15,6.6158161]
[1749331353854,13.47021089,151.2,151.15,6.6158161]
[1749331354279,6.8563091,151.19,151.15,6.6158161]
[1749331354578,6.61390179,151.2,151.15,6.6158161]
[1749331354766,6.8563091,151.2,151.15,6.6158161]
[1749331354969,6.8563091,151.2,151.16,10.24]
[1749331356767,6.8563091,151.19,151.16,16.85550461]
[1749331360684,4.23856801,151.19,151.16,16.85550461]
[1749331369297,4.23856801,151.19,151.17,10.24]
[1749331373995,4.23856801,151.19,151.15,6.61594442]
[1749331374205,4.23856801,151.19,151.18,10.24]
[1749331378277,75.82340534,151.21,151.18,10.24]
[1749331383691,49.82340534,151.21,151.18,10.24]
[1749331383883,6.8563091,151.21,151.18,10.24]
[1749331385812,6.61292831,151.22,151.18,16.85462468]
[1749331385982,6.8563091,151.21,151.18,16.85462468]
[1749331386710,32.8563091,151.23,151.18,16.85462468]
[1749331386894,32.8563091,151.23,151.19,2.46740683]
[1749331387093,32.8563091,151.23,151.18,23.71093378]
[1749331387505,32.8563091,151.23,151.19,2.46609227]
[1749331387708,32.8563091,151.23,151.18,23.71093378]
[1749331387911,32.8563091,151.23,151.19,2.46551037]
[1749331388091,32.8563091,151.23,151.18,23.71093378]
[1749331388409,32.8563091,151.23,151.19,2.46539162]
[1749331388613,32.8563091,151.23,151.18,23.71093378]
[1749331388808,32.8563091,151.23,151.19,9.07946819]
[1749331389007,32.8563091,151.23,151.19,6.6141398]
[1749331389590,39.4688191,151.23,151.18,23.71078187]
[1749331390090,39.4688191,151.23,151.19,2.46443419]
[1749331390308,39.4688191,151.23,151.18,23.71078187]
[1749331390618,32.8563091,151.23,151.19,2.4643882]
[1749331390908,32.8563091,151.23,151.18,23.71078187]
[1749331391112,6.8563091,151.24,151.19,2.46356261]
[1749331391303,6.8563091,151.24,151.19,6.8563091]
[1749331391705,32.8563091,151.25,151.19,6.8563091]
[1749331393114,32.8563091,151.25,151.2,6.61375661]
[1749331395008,6.8563091,151.25,151.2,6.61375661]
[1749331395208,6.8563091,151.25,151.2,13.47006571]
[1749331397223,6.61121805,151.26,151.2,13.47006571]
[1749331397224,6.8563091,151.26,151.21,6.8563091]
[1749331398413,6.8563091,151.26,151.21,13.46928907]
[1749331399317,32.8563091,151.27,151.22,6.8563091]
[1749331399522,32.8563091,151.27,151.23,10.24]
[1749331400108,6.8563091,151.27,151.23,10.24]
[1749331400918,13.46704822,151.27,151.23,10.24]
[1749331401113,13.46704822,151.27,151.23,16.85244407]
[1749331401410,6.8563091,151.27,151.23,23.70875317]
[1749331404011,13.4666442,151.28,151.23,23.70875317]
[1749331405034,6.6103351,151.28,151.23,23.70875317]
[1749331405208,13.4666442,151.28,151.23,23.70875317]
[1749331405407,6.8563091,151.28,151.23,23.70875317]
[1749331405611,6.8563091,151.28,151.24,6.8563091]
[1749331406323,32.71482434,151.29,151.24,6.8563091]
[1749331406534,6.8563091,151.28,151.24,6.8563091]
[1749331406916,6.8563091,151.28,151.24,13.4682224]
[1749331407909,6.96106,151.29,151.24,13.4682224]
[1749331409313,0.1047509,151.29,151.25,6.8563091]
[1749331409933,0.1047509,151.29,151.26,6.8563091]
[1749331411520,0.1047509,151.29,151.26,13.46711182]
[1749331412242,0.1047509,151.29,151.27,6.8563091]
[1749331412448,0.1047509,151.29,151.28,10.22]
[1749331413920,0.1047509,151.29,151.28,16.83025912]
[1749331414136,0.1047509,151.29,151.28,23.68656822]
[1749331415522,0.1047509,151.29,151.28,111.88656822]
[1749331416147,0.1047509,151.29,151.28,139.31180462]
[1749331416747,0.1047509,151.29,151.28,158.10361505]
[1749331424354,0.1047509,151.29,151.28,130.67837865]
[1749331429051,0.1047509,151.29,151.28,168.75837865]
[1749331430059,0.1047509,151.29,151.28,196.18361505]
[1749331432455,6.8563091,151.38,151.29,18.79181043]
[1749331432663,6.8563091,151.38,151.34,6.8563091]
[1749331432847,6.8563091,151.38,151.35,10.22]
[1749331433050,26.0,151.39,151.35,17.0763091]
[1749331433354,32.8563091,151.39,151.35,17.0763091]
[1749331434450,39.46181635,151.39,151.35,17.0763091]
[1749331434650,32.8563091,151.39,151.35,17.0763091]
[1749331435652,6.8563091,151.39,151.35,23.68345085]
[1749331437159,13.46178649,151.39,151.35,23.68345085]
[1749331437366,13.46178649,151.39,151.35,17.0763091]
[1749331440968,6.8563091,151.38,151.35,10.22]
[1749331442665,6.8563091,151.36,151.35,10.22]
[1749331444175,23.11756934,151.4,151.35,10.22]
[1749331444377,6.8563091,151.37,151.32,139.64456545]
[1749331444548,6.8563091,151.37,151.36,10.22]
[1749331445344,13.46263796,151.37,151.36,10.22]
[1749331449668,33.73098682,151.37,151.36,10.22]
[1749331470496,32.11228682,151.37,151.36,10.22]
[1749331480876,32.11228682,151.37,151.35,10.22]
[1749331481075,6.8563091,151.36,151.35,10.22]
[1749331481995,13.46307442,151.36,151.35,10.22]
[1749331490405,13.46307442,151.36,151.3,8.24654334]
[1749331490602,13.46307442,151.36,151.34,10.2]
[1749331491294,6.8563091,151.35,151.34,10.2]
[1749331494501,6.60676532,151.36,151.34,10.2]
[1749331494799,6.8563091,151.35,151.34,10.2]
[1749331500627,44.64964886,151.38,151.34,10.2]
[1749331500831,6.60646061,151.37,151.34,10.2]
[1749331501037,6.60646061,151.37,151.32,10.2]
[1749331501038,18.64964886,151.34,151.32,10.2]
[1749331501319,40.0,151.35,151.32,10.2]
[1749331501617,6.8563091,151.33,151.32,10.2]
[1749331505119,13.46438416,151.33,151.32,10.2]
[1749331518636,6.8563091,151.33,151.32,10.2]
[1749331521739,13.46438416,151.33,151.32,10.2]
[1749331524928,6.8563091,151.33,151.32,10.2]
[1749331526837,13.46438416,151.33,151.32,10.2]
[1749331536933,6.8563091,151.33,151.32,10.2]
[1749331537329,46.60735803,151.35,151.32,10.2]
[1749331537654,6.8563091,151.34,151.32,10.2]
[1749331537945,6.8563091,151.33,151.32,10.2]
[1749331541442,6.8563091,151.34,151.32,10.2]
[1749331542231,26.0,151.36,151.32,16.80844319]
[1749331542430,6.8563091,151.34,151.32,16.80844319]
[1749331549455,26.0,151.36,151.32,16.80844319]
[1749331549649,6.8563091,151.34,151.32,16.80844319]
[1749331552351,26.0,151.36,151.32,16.80844319]
[1749331552659,6.8563091,151.34,151.32,16.80844319]
[1749331560666,6.8563091,151.34,151.32,10.2]
[1749331565957,6.8563091,151.34,151.33,10.2]
[1749331573467,6.8563091,151.35,151.33,10.2]
[1749331575465,6.8563091,151.35,151.34,10.2]
[1749331578276,39.46314807,151.36,151.34,10.2]
[1749331580387,39.46314807,151.36,151.35,10.2]
[1749331592701,32.60683897,151.36,151.35,10.2]
[1749331592894,39.46314807,151.36,151.35,10.2]
[1749331595498,32.8563091,151.36,151.35,10.2]
[1749331596695,39.46307442,151.36,151.35,10.2]
[1749331601504,32.8563091,151.36,151.35,10.2]
[1749331602609,6.8563091,151.36,151.35,10.2]
[1749331610209,6.8563091,151.37,151.35,10.2]
[1749331613307,6.8563091,151.37,151.35,16.80716312]
[1749331618219,32.8563091,151.38,151.35,16.80716312]
[1749331619111,6.8563091,151.38,151.35,16.80716312]
[1749331630824,6.8563091,151.39,151.35,16.80716312]
[1749331631741,32.8563091,151.4,151.35,23.66347222]
[1749331632303,26.0,151.4,151.35,16.80716312]
[1749331632612,6.8563091,151.39,151.35,16.80716312]
[1749331649639,13.46182249,151.39,151.35,10.2]
[1749331649965,13.46182249,151.39,151.36,10.18]
[1749331649966,6.8563091,151.38,151.36,10.18]
[1749331659469,6.8563091,151.38,151.37,10.18]
[1749331673490,6.60548169,151.39,151.37,10.18]
[1749331673673,13.46179079,151.39,151.37,10.18]
[1749331673867,13.46179079,151.39,151.38,10.18]
[1749331678478,6.60548169,151.39,151.38,10.18]
[1749331678676,13.46179079,151.39,151.38,10.18]
[1749331680580,6.60548169,151.39,151.38,10.18]
[1749331680782,13.46179079,151.39,151.38,10.18]
[1749331692671,6.8563091,151.39,151.38,10.18]
[1749331692878,39.4615214,151.4,151.38,10.18]
[1749331693981,32.8563091,151.4,151.38,10.18]
[1749331694185,6.8563091,151.4,151.38,10.18]
[1749331694590,6.8563091,151.41,151.38,10.18]
[1749331695098,6.8563091,151.39,151.38,10.18]
[1749331707090,32.8563091,151.39,151.38,10.18]
[1749331709823,39.4617652,151.39,151.38,10.18]
[1749331713211,98.03141406,151.39,151.38,10.18]
[1749331715390,18.64964886,151.38,151.35,10.18]
[1749331715614,32.8563091,151.36,151.35,10.18]
[1749331717720,39.46307442,151.36,151.35,10.18]
[1749331726420,32.60676532,151.36,151.35,10.18]
[1749331726618,39.46307442,151.36,151.35,10.18]
[1749331730306,32.8563091,151.36,151.35,10.18]
[1749331751364,26.0,151.36,151.35,10.18]
[1749331751667,32.8563091,151.36,151.35,10.18]
[1749331755258,6.8563091,151.37,151.35,10.18]
[1749331762861,6.8563091,151.37,151.35,16.78714369]
[1749331767564,6.8563091,151.37,151.35,10.18]
[1749331768277,6.76915483,151.37,151.35,10.18]
[1749331774380,32.8563091,151.38,151.35,10.18]
[1749331777879,6.8563091,151.37,151.35,10.18]
[1749331785002,39.46224316,151.38,151.35,10.18]
[1749331787774,39.46224316,151.38,151.36,10.16]
[1749331792297,32.8563091,151.38,151.36,10.16]
[1749331792494,6.8563091,151.38,151.37,10.16]
[1749331800308,13.46220155,151.38,151.37,10.16]
[1749331800712,6.8563091,151.38,151.37,10.16]
[1749331817697,6.3563091,151.38,151.37,10.16]
[1749331818309,6.8563091,151.38,151.37,10.16]
[1749331818505,13.46195112,151.39,151.37,10.16]
[1749331819436,6.8563091,151.38,151.37,10.16]
[1749331819815,13.46220155,151.38,151.37,10.16]
[1749331830728,32.11185041,151.38,151.37,10.16]
[1749331830919,58.11185041,151.38,151.37,10.16]
[1749331850240,18.64964886,151.37,151.34,10.16]
[1749331850441,6.8563091,151.35,151.34,10.16]
[1749331866370,46.50680843,151.36,151.34,10.16]
[1749331866572,6.8563091,151.35,151.34,10.16]
[1749331881080,46.7563091,151.36,151.34,10.16]
[1749331883585,39.9,151.36,151.34,10.16]
[1749331883773,46.7563091,151.36,151.34,10.16]
[1749331889790,39.9,151.36,151.34,10.16]
[1749331889974,46.7563091,151.36,151.34,10.16]
[1749331903101,53.36316313,151.36,151.34,10.16]
[1749331909100,6.8563091,151.35,151.34,10.16]
[1749331915103,46.7563091,151.36,151.34,10.16]
[1749331917709,6.8563091,151.35,151.34,10.16]
[1749331928314,46.5068033,151.36,151.34,10.16]
[1749331928624,6.8563091,151.35,151.34,10.16]
[1749331938833,6.8563091,151.35,151.33,10.14]
[1749331954447,6.8563091,151.35,151.34,10.14]
[1749331956245,46.7363091,151.36,151.34,10.14]
[1749331963257,39.88,151.36,151.34,10.14]
[1749331963564,46.7363091,151.36,151.34,10.14]
[1749331966061,6.8563091,151.35,151.34,10.14]
[1749331970457,53.34317179,151.36,151.33,10.14]
[1749331978370,46.48686269,151.36,151.33,10.14]
[1749331978872,46.48686269,151.36,151.34,10.14]
[1749331983568,53.34317179,151.36,151.34,10.14]
[1749331984786,6.8563091,151.35,151.34,10.14]
[1749331994395,26.0,151.38,151.34,10.14]
[1749331994575,39.86,151.37,151.34,16.74750391]
[1749331995077,46.7163091,151.37,151.34,16.74750391]
[1749332012187,32.8563091,151.38,151.34,16.74750391]
[1749332019806,32.8563091,151.38,151.34,23.60381301]
[1749332020009,26.0,151.38,151.34,23.60381301]
[1749332022300,32.8563091,151.38,151.34,16.74750391]
[1749332022496,6.60327522,151.44,151.35,14.9290091]
[1749332022716,6.8563091,151.42,151.37,6.8563091]
[1749332024120,6.8563091,151.44,151.39,6.6054561]
[1749332024418,6.8563091,151.43,151.39,16.7454561]
[1749332025221,6.8563091,151.42,151.39,16.7454561]
[1749332025603,6.8563091,151.43,151.39,16.7454561]
[1749332028013,6.8563091,151.43,151.39,10.14]
[1749332028727,13.46006729,151.43,151.39,10.14]
[1749332030110,6.8563091,151.41,151.39,10.14]
[1749332031404,6.8563091,151.4,151.39,10.14]
[1749332032628,13.46132891,151.4,151.39,10.14]
[1749332033527,39.46132891,151.4,151.39,10.14]
[1749332037541,55.97387844,151.4,151.35,10.12]
[1749332037832,6.8563091,151.38,151.35,10.12]
[1749332038633,6.60632886,151.37,151.35,10.12]
[1749332039128,6.6054561,151.39,151.36,6.8563091]
[1749332040126,6.6054561,151.39,151.35,16.9763091]
[1749332050632,18.64964886,151.46,151.36,7.7489]
[1749332050936,13.45958432,151.44,151.39,6.8563091]
[1749332051130,6.60327522,151.44,151.39,6.8563091]
[1749332051337,13.45958432,151.44,151.39,6.8563091]
[1749332051533,6.60327522,151.44,151.39,6.8563091]
[1749332051848,6.8563091,151.44,151.39,6.8563091]
[1749332052147,6.8563091,151.44,151.38,6.8563091]
[1749332052940,6.8563091,151.44,151.39,6.6054561]
[1749332053445,6.8563091,151.43,151.39,6.6054561]
[1749332056051,32.60300957,151.45,151.39,6.6054561]
[1749332056351,6.8563091,151.43,151.39,6.6054561]
[1749332057550,26.0,151.45,151.39,6.6054561]
[1749332057859,6.8563091,151.43,151.39,6.6054561]
[1749332060067,6.8563091,151.43,151.38,6.60589245]
[1749332061859,6.8563091,151.43,151.4,6.60501981]
[1749332063259,6.8563091,151.44,151.4,6.60501981]
[1749332064142,6.8563091,151.44,151.4,13.46132891]
[1749332066161,19.73098467,151.52,151.43,6.8563091]
[1749332066462,19.73098467,151.52,151.42,1.5719]
[1749332066463,6.8563091,151.52,151.47,6.8563091]
[1749332066961,32.8563091,151.52,151.47,6.8563091]
[1749332067158,26.0,151.52,151.47,6.8563091]
[1749332067359,32.8563091,151.52,151.48,6.60153155]
[1749332067948,6.8563091,151.52,151.48,6.60153155]
[1749332068158,6.59898505,151.54,151.48,6.60153155]
[1749332068459,6.8563091,151.52,151.48,6.60153155]
[1749332068668,6.8563091,151.52,151.47,13.45811112]
[1749332070468,13.45610603,151.52,151.47,13.45811112]
[1749332071067,6.59979693,151.52,151.48,14.9254091]
[1749332071255,6.8563091,151.57,151.51,6.8563091]
[1749332071562,6.59804697,151.56,151.52,6.8563091]
[1749332071769,6.59804697,151.56,151.53,6.8563091]
[1749332072155,6.59804697,151.56,151.54,6.8563091]
[1749332072666,32.59773023,151.57,151.54,6.8563091]
[1749332073151,32.59773023,151.57,151.54,7.98300081]
[1749332073667,32.59773023,151.57,151.55,7.98300081]
[1749332074057,32.59773023,151.57,151.52,7.98300081]
[1749332074655,7.50179764,151.59,151.52,6.5997888]
[1749332074865,7.98300081,151.58,151.52,14.58278961]
[1749332075575,7.98300081,151.58,151.52,6.5997888]
[1749332076074,33.50179764,151.59,151.52,6.5997888]
[1749332076471,7.98300081,151.58,151.52,6.5997888]
[1749332077174,7.98300081,151.56,151.51,6.60007379]
[1749332077365,7.98300081,151.55,151.51,6.60007379]
[1749332077566,7.98300081,151.56,151.51,14.5830746]
[1749332078578,14.58114442,151.56,151.51,14.5830746]
[1749332078755,7.98300081,151.55,151.51,14.5830746]
[1749332079580,14.58114442,151.56,151.51,6.60007379]
[1749332079987,7.98300081,151.57,151.51,6.60007379]
[1749332080674,7.98300081,151.57,151.5,14.58355672]
[1749332080875,7.98300081,151.54,151.49,104.72097258]
[1749332081190,7.98300081,151.53,151.49,104.72097258]
[1749332081369,7.98300081,151.53,151.49,16.72097258]
[1749332081770,7.98300081,151.53,151.49,10.12]
[1749332081958,14.58246759,151.53,151.49,10.12]
[1749332086275,7.98300081,151.52,151.49,10.12]
[1749332086776,6.59946678,151.53,151.49,10.12]
[1749332087083,7.98300081,151.52,151.49,10.12]
[1749332087876,25.2481312,151.55,151.49,10.12]
[1749332088081,7.98300081,151.52,151.49,10.12]
[1749332088464,7.98300081,151.53,151.49,10.12]
[1749332089996,6.5997888,151.52,151.49,10.12]
[1749332097696,6.59891777,151.54,151.5,7.98300081]
[1749332097899,7.50184851,151.59,151.53,9.49690081]
[1749332098089,7.50184851,151.59,151.56,7.98300081]
[1749332098395,0.904952,151.59,151.55,7.98300081]
[1749332099092,8.88795281,151.59,151.54,7.98300081]
[1749332100101,8.88795281,151.59,151.55,6.59848234]
[1749332100677,7.98300081,151.58,151.55,6.59848234]
[1749332101797,0.904952,151.59,151.55,6.59848234]
[1749332102005,7.98300081,151.58,151.54,14.58188863]
[1749332102186,7.98300081,151.56,151.53,8.11310553]
[1749332103203,7.98300081,151.55,151.53,8.11310553]
[1749332103403,7.98300081,151.56,151.53,8.11310553]
[1749332103901,7.98300081,151.57,151.53,8.11310553]
[1749332104401,7.98300081,151.56,151.53,1.5139]
[1749332104599,7.98300081,151.55,151.53,1.5139]
[1749332104797,7.98300081,151.55,151.52,6.59966611]
[1749332105707,7.98300081,151.55,151.51,6.6002244]
[1749332106009,7.98300081,151.55,151.51,14.58322521]
[1749332106188,7.98300081,151.56,151.51,14.58322521]
[1749332109809,7.98300081,151.57,151.51,6.6002244]
[1749332110105,14.58017721,151.58,151.51,6.6002244]
[1749332110913,6.5971764,151.58,151.51,6.6002244]
[1749332111114,14.58017721,151.58,151.51,6.6002244]
[1749332111812,6.5971764,151.58,151.51,6.6002244]
[1749332116615,26.0,151.58,151.54,7.98300081]
[1749332116811,26.0,151.58,151.55,7.98300081]
[1749332117008,26.0,151.58,151.54,7.98300081]
[1749332117207,7.98300081,151.57,151.51,23.10078541]
[1749332117420,7.98300081,151.54,151.51,6.6002244]
[1749332117796,7.98300081,151.54,151.5,94.60048382]
[1749332118201,7.98300081,151.55,151.5,94.60048382]
[1749332118821,7.98300081,151.55,151.5,102.58348463]
[1749332119419,14.5815515,151.55,151.5,102.58348463]
[1749332122927,7.98300081,151.56,151.5,94.60048382]
[1749332123925,6.59848234,151.55,151.5,94.60048382]
[1749332124729,6.59848234,151.55,151.49,18.25037475]
[1749332125227,7.98300081,151.54,151.49,26.23337556]
[1749332130029,14.58148315,151.55,151.49,18.25037475]
[1749332130527,33.98300081,151.57,151.52,7.98300081]
[1749332130725,26.0,151.57,151.53,7.98300081]
[1749332131231,33.98300081,151.57,151.52,7.98300081]
[1749332131427,33.98300081,151.57,151.53,6.59935326]
[1749332132230,0.904952,151.59,151.56,7.98300081]
[1749332132408,0.904952,151.59,151.57,7.98300081]
[1749332133522,0.904952,151.59,151.56,7.98300081]
[1749332135530,0.904952,151.59,151.57,6.59761166]
[1749332135714,0.904952,151.59,151.58,7.98300081]
[1749332136024,0.904952,151.59,151.57,14.58061247]
[1749332137338,0.904952,151.59,151.58,7.98300081]
[1749332137517,0.904952,151.59,151.57,14.58061247]
[1749332138013,0.904952,151.59,151.58,14.58017721]
[1749332147323,0.904952,151.59,151.57,7.98300081]
[1749332148240,0.904952,151.59,151.58,7.98300081]
[1749332149450,0.904952,151.59,151.58,14.58017721]
[1749332150147,0.904952,151.59,151.58,6.5971764]
[1749332150733,0.904952,151.59,151.58,7.98300081]
[1749332152235,0.904952,151.59,151.58,14.58017721]
[1749332152436,0.904952,151.59,151.58,6.5971764]
[1749332159249,0.904952,151.59,151.57,11.7040385]
[1749332161251,0.904952,151.59,151.57,99.7040385]
[1749332168647,0.904952,151.59,151.57,94.59761166]
[1749332169967,0.904952,151.59,151.57,6.59761166]
[1749332170976,0.904952,151.59,151.56,16.95789199]
[1749332171366,6.01137884,151.59,151.56,16.95789199]
[1749332174261,0.904952,151.59,151.56,16.95789199]
[1749332174467,0.904952,151.59,151.56,22.06431883]
[1749332174641,0.904952,151.59,151.56,16.95789199]
[1749332182586,0.904952,151.59,151.56,22.06431883]
[1749332184055,0.904952,151.59,151.56,16.95789199]
[1749332188954,0.904952,151.59,151.56,10.36]
[1749332191477,0.904952,151.59,151.55,11.70473677]
[1749332196988,0.904952,151.59,151.55,6.59830993]
[1749332199384,7.50189886,151.59,151.54,11.9639]
[1749332199586,5.10642684,151.58,151.54,10.32]
[1749332199794,5.10642684,151.57,151.54,10.32]
[1749332202992,5.10642684,151.56,151.54,10.32]
[1749332203995,5.10642684,151.57,151.54,10.32]
[1749332204402,5.10642684,151.56,151.54,10.32]
[1749332208191,4.60642684,151.56,151.54,10.32]
[1749332209700,6.01137884,151.59,151.55,3.99572127]
[1749332209880,6.01137884,151.59,151.55,1.5435]
[1749332210786,5.10642684,151.58,151.55,8.14167564]
[1749332212904,5.10642684,151.58,151.56,2.45324709]
[1749332213105,5.10642684,151.58,151.55,8.14167564]
[1749332213410,5.10642684,151.58,151.56,2.45315692]
[1749332213579,5.10642684,151.58,151.55,8.14167564]
[1749332213786,5.10642684,151.58,151.56,2.45310684]
[1749332214096,5.10642684,151.58,151.55,8.14167564]
[1749332214486,5.10642684,151.57,151.55,8.14167564]
[1749332217002,5.10642684,151.57,151.55,6.59817564]
[1749332217395,5.10642684,151.57,151.54,16.918747]
[1749332217694,5.10642684,151.57,151.55,2.45392931]
[1749332217893,5.10642684,151.57,151.54,16.918747]
[1749332218586,5.10642684,151.57,151.55,2.45385392]
[1749332218788,5.10642684,151.57,151.54,16.918747]
[1749332219012,5.10642684,151.57,151.55,2.45385451]
[1749332219305,5.10642684,151.57,151.54,16.918747]
[1749332219506,5.10642684,151.57,151.55,2.45380511]
[1749332219711,5.10642684,151.57,151.54,16.918747]
[1749332220087,5.10642684,151.57,151.55,2.45380519]
[1749332220283,5.10642684,151.57,151.54,16.918747]
[1749332220484,5.10642684,151.57,151.55,2.45371671]
[1749332220787,5.10642684,151.57,151.54,16.918747]
[1749332220989,5.10642684,151.57,151.55,2.45385713]
[1749332221303,5.10642684,151.57,151.54,16.918747]
[1749332221606,5.10642684,151.57,151.55,9.05230817]
[1749332221800,5.10642684,151.57,151.55,6.59836187]
[1749332223594,5.10642684,151.57,151.54,16.91875021]
[1749332223793,5.10642684,151.57,151.55,2.45410676]
[1749332224003,5.10642684,151.57,151.54,16.91875021]
[1749332224205,5.10642684,151.57,151.55,2.45420552]
[1749332224415,5.10642684,151.57,151.54,16.91875021]
[1749332225010,5.10642684,151.57,151.54,6.59875021]
[1749332225713,0.904952,151.59,151.54,6.59875021]
[1749332226015,5.10642684,151.58,151.55,2.45407483]
[1749332226310,5.10642684,151.58,151.54,6.59875021]
[1749332226516,5.10642684,151.57,151.54,6.59875021]
[1749332228014,5.10642684,151.57,151.55,2.45401542]
[1749332228191,5.10642684,151.57,151.54,6.59875021]
[1749332229314,5.10642684,151.57,151.55,9.05270141]
[1749332229517,5.10642684,151.57,151.55,6.59846094]
[1749332230612,5.10642684,151.57,151.54,16.81891777]
[1749332230821,5.10642684,151.58,151.55,2.45426746]
[1749332230995,5.10642684,151.58,151.54,16.81891777]
[1749332231196,5.10642684,151.58,151.55,2.45424717]
[1749332231413,5.10642684,151.58,151.54,16.81891777]
[1749332231613,5.10642684,151.58,151.55,2.45424728]
[1749332231806,5.10642684,151.58,151.54,16.81891777]
[1749332232417,5.10642684,151.58,151.55,2.45426655]
[1749332232720,5.10642684,151.58,151.54,16.81891777]
[1749332232920,5.10642684,151.58,151.55,2.45418877]
[1749332233224,5.10642684,151.58,151.54,16.81891777]
[1749332233715,5.10642684,151.57,151.54,16.81891777]
[1749332235217,5.10642684,151.57,151.54,6.59891777]
[1749332237016,0.904952,151.59,151.55,22.11199827]
[1749332237200,0.904952,151.59,151.56,2.45334933]
[1749332237406,6.01137884,151.59,151.55,14.55162049]
[1749332237645,6.01137884,151.59,151.56,2.45354231]
[1749332237923,6.01137884,151.59,151.55,14.55162049]
[1749332238221,6.01137884,151.59,151.56,2.45322505]
[1749332238524,6.01137884,151.59,151.55,14.55162049]
[1749332238731,6.01137884,151.59,151.57,6.59761166]
[1749332240099,6.01137884,151.59,151.56,6.59804697]
[1749332246147,0.904952,151.59,151.57,5.10642684]
[1749332247609,0.904952,151.59,151.58,6.5971764]
[1749332249134,0.904952,151.59,151.57,6.59761166]
[1749332261550,0.904952,151.59,151.56,23.09302817]
[1749332261925,0.904952,151.59,151.57,2.44853454]
[1749332262126,0.904952,151.59,151.56,23.09302817]
[1749332262347,0.904952,151.59,151.57,2.44873567]
[1749332262534,0.904952,151.59,151.56,23.09302817]
[1749332262735,0.904952,151.59,151.58,6.5971764]
[1749332264752,0.904952,151.59,151.56,23.09302817]
[1749332264950,0.904952,151.59,151.57,2.44959489]
[1749332265160,0.904952,151.59,151.56,23.09302817]
[1749332265558,0.904952,151.59,151.57,2.4498446]
[1749332265842,0.904952,151.59,151.56,23.09302817]
[1749332266046,0.904952,151.59,151.57,2.44975158]
[1749332266247,0.904952,151.59,151.56,23.09302817]
[1749332266451,0.904952,151.59,151.57,2.44967073]
[1749332266648,0.904952,151.59,151.56,23.09302817]
[1749332266847,0.904952,151.59,151.58,6.5971764]
[1749332269048,0.904952,151.59,151.58,2.44913049]
[1749332269250,0.904952,151.59,151.56,23.09302817]
[1749332269440,0.904952,151.59,151.57,2.44974596]
[1749332269628,0.904952,151.59,151.56,23.09302817]
[1749332269829,0.904952,151.59,151.58,6.5971764]
[1749332272326,0.904952,151.59,151.56,23.09302817]
[1749332272541,0.904952,151.59,151.57,2.45010948]
[1749332272740,0.904952,151.59,151.56,23.09302817]
[1749332272947,0.904952,151.59,151.57,2.45018977]
[1749332273148,0.904952,151.59,151.56,23.09302817]
[1749332273362,0.904952,151.59,151.57,2.4501534]
[1749332273548,0.904952,151.59,151.56,23.09302817]
[1749332273754,0.904952,151.59,151.58,6.5971764]
[1749332275861,0.904952,151.59,151.56,23.09302817]
[1749332276156,0.904952,151.59,151.57,2.45082827]
[1749332276460,0.904952,151.59,151.56,23.09302817]
[1749332276959,0.904952,151.59,151.57,2.45086465]
[1749332277161,0.904952,151.59,151.56,23.09302817]
[1749332277354,0.904952,151.59,151.58,6.5971764]
[1749332278838,0.904952,151.59,151.56,23.09302817]
[1749332279140,0.904952,151.59,151.57,2.45149004]
[1749332279342,0.904952,151.59,151.56,23.09302817]
[1749332279665,0.904952,151.59,151.57,2.45234139]
[1749332279850,0.904952,151.59,151.56,23.09302817]
[1749332280053,0.904952,151.59,151.58,6.5971764]
[1749332281262,0.904952,151.59,151.58,9.05088394]
[1749332281461,0.904952,151.59,151.58,9.05049033]
[1749332281665,0.904952,151.59,151.58,14.15689584]
[1749332282746,0.904952,151.59,151.58,11.70360324]